[Event "SS Manhem Chess Week 2022: Goteborg Open"]
[Site "Schackcentrum, Vegagatan 20, Gothenburg, Sweden"]
[Date "2022.08.12"]
[Round "3.3"]
[White "Asbrink, Adam"]
[Black "Nygren, Kim"]
[Result "0-1"]
[TimeControl "15 minutes + 5 seconds per move from move one (Round 1 - 4) / 90 minutes + 30 seconds per move from move one (Round 5 - 8)"]
[BlackTitle "CM"]
[WhiteFideId "1767410"]
[BlackFideId "1706136"]
[WhiteElo "1977"]
[BlackElo "2229"]

1. d4 {[%clk 00:15:07]} Nf6 {[%clk 00:15:08]} {[%emt 00:00:02]} 2. Nc3 {[%clk
00:15:10]} {[%emt 00:00:03]} e6 {[%clk 00:15:12]} {[%emt 00:00:03]} 3. Bf4
{[%clk 00:15:11]} {[%emt 00:00:03]} c5 {[%clk 00:15:12]} {[%emt 00:00:05]} 4.
d5 {[%clk 00:14:05]} {[%emt 00:01:12]} Qa5 {[%clk 00:14:53]} {[%emt 00:00:23]}
5. Bd2 {[%clk 00:13:18]} {[%emt 00:00:51]} Qb6 {[%clk 00:14:36]} {[%emt
00:00:22]} 6. e4 {[%clk 00:12:27]} {[%emt 00:00:57]} d6 {[%clk 00:14:25]}
{[%emt 00:00:16]} 7. dxe6 {[%clk 00:12:19]} {[%emt 00:00:13]} Bxe6 {[%clk
00:14:20]} {[%emt 00:00:10]} 8. Nge2 {[%clk 00:12:19]} {[%emt 00:00:05]} Nc6
{[%clk 00:14:09]} {[%emt 00:00:15]} 9. Nf4 {[%clk 00:11:21]} {[%emt 00:01:04]}
O-O-O {[%clk 00:14:00]} {[%emt 00:00:14]} 10. Nxe6 {[%clk 00:09:40]} {[%emt
00:01:46]} fxe6 {[%clk 00:14:03]} {[%emt 00:00:02]} 11. g3 {[%clk 00:08:49]}
{[%emt 00:00:57]} h5 {[%clk 00:13:43]} {[%emt 00:00:24]} 12. Bh3 {[%clk
00:08:44]} {[%emt 00:00:09]} Nd4 {[%clk 00:13:21]} {[%emt 00:00:28]} 13. Be3
{[%clk 00:08:08]} {[%emt 00:00:41]} Kb8 {[%clk 00:13:09]} {[%emt 00:00:17]} 14.
Rb1 {[%clk 00:06:15]} {[%emt 00:01:58]} Ng4 {[%clk 00:11:21]} {[%emt 00:01:53]}
15. Bxd4 {[%clk 00:05:52]} {[%emt 00:00:29]} cxd4 {[%clk 00:11:19]} {[%emt
00:00:07]} 16. Ne2 {[%clk 00:05:55]} {[%emt 00:00:02]} Nxf2 {[%clk 00:09:56]}
{[%emt 00:01:28]} 17. Kxf2 {[%clk 00:05:57]} {[%emt 00:00:02]} d3+ {[%clk
00:09:59]} {[%emt 00:00:01]} 18. Kg2 {[%clk 00:05:40]} {[%emt 00:00:23]} dxe2
{[%clk 00:10:02]} {[%emt 00:00:02]} 19. Qxe2 {[%clk 00:05:43]} {[%emt
00:00:02]} d5 {[%clk 00:09:27]} {[%emt 00:00:40]} 20. Rhd1 {[%clk 00:05:19]}
{[%emt 00:00:29]} h4 {[%clk 00:09:02]} {[%emt 00:00:30]} 21. exd5 {[%clk
00:02:33]} {[%emt 00:02:52]} exd5 {[%clk 00:09:05]} {[%emt 00:00:02]} 22. Qe6
{[%clk 00:02:28]} {[%emt 00:00:10]} Bd6 {[%clk 00:08:40]} {[%emt 00:00:30]} 23.
Rxd5 {[%clk 00:02:13]} {[%emt 00:00:21]} hxg3 {[%clk 00:08:35]} {[%emt
00:00:09]} 24. hxg3 {[%clk 00:02:09]} {[%emt 00:00:09]} Rhe8 {[%clk 00:08:09]}
{[%emt 00:00:31]} 25. Qg4 {[%clk 00:01:55]} {[%emt 00:00:19]} Qc6 {[%clk
00:07:39]} {[%emt 00:00:35]} 26. c4 {[%clk 00:01:48]} {[%emt 00:00:12]} Re3
{[%clk 00:06:46]} {[%emt 00:00:58]} 27. Kg1 {[%clk 00:00:14]} {[%emt 00:01:39]}
Rde8 {[%clk 00:05:04]} {[%emt 00:01:47]} 28. Bg2 {[%clk 00:00:11]} {[%emt
00:00:08]} Rxg3 {[%clk 00:04:06]} {[%emt 00:01:03]} 29. Qd4 {[%clk 00:00:15]}
{[%emt 00:00:02]} Re2 {[%clk 00:02:20]} {[%emt 00:01:50]} 30. Kf1 {[%clk
00:00:11]} {[%emt 00:00:08]} Rgxg2 {[%clk 00:01:58]} {[%emt 00:00:28]} 31. Rxd6
{[%clk 00:00:13]} {[%emt 00:00:03]} Qf3+ {[%clk 00:01:57]} {[%emt 00:00:07]}
0-1

[Event "SS Manhem Chess Week 2022: Goteborg Open"]
[Site "Schackcentrum, Vegagatan 20, Gothenburg, Sweden"]
[Date "2022.08.12"]
[Round "3.4"]
[White "Fransson, Lennart"]
[Black "Wahlstrom, Lennart"]
[Result "1-0"]
[TimeControl "15 minutes + 5 seconds per move from move one (Round 1 - 4) / 90 minutes + 30 seconds per move from move one (Round 5 - 8)"]
[WhiteFideId "1706756"]
[BlackFideId "1706829"]
[WhiteElo "1958"]
[BlackElo "2115"]

1. e4 {[%clk 00:15:06]} {[%emt 00:00:02]} e5 {[%clk 00:15:09]} {[%emt
00:00:05]} 2. Nf3 {[%clk 00:15:08]} Nc6 {[%clk 00:15:13]} {[%emt 00:00:02]} 3.
Bc4 {[%clk 00:15:12]} {[%emt 00:00:01]} Nf6 {[%clk 00:15:16]} {[%emt 00:00:02]}
4. Ng5 {[%clk 00:15:15]} {[%emt 00:00:01]} d5 {[%clk 00:15:20]} {[%emt
00:00:02]} 5. exd5 {[%clk 00:15:18]} {[%emt 00:00:01]} Na5 {[%clk 00:15:25]} 6.
Bb5+ {[%clk 00:15:21]} {[%emt 00:00:02]} Bd7 {[%clk 00:15:29]} {[%emt
00:00:01]} 7. Be2 {[%clk 00:14:42]} {[%emt 00:00:44]} Nxd5 {[%clk 00:14:47]}
{[%emt 00:00:47]} 8. d4 {[%clk 00:14:32]} {[%emt 00:00:15]} Be7 {[%clk
00:12:32]} {[%emt 00:02:19]} 9. Nf3 {[%clk 00:12:57]} {[%emt 00:01:40]} exd4
{[%clk 00:10:52]} {[%emt 00:01:46]} 10. Nxd4 {[%clk 00:12:44]} {[%emt
00:00:17]} Nc6 {[%clk 00:10:28]} {[%emt 00:00:29]} 11. Nf3 {[%clk 00:12:34]}
{[%emt 00:00:14]} Be6 {[%clk 00:10:14]} {[%emt 00:00:20]} 12. O-O {[%clk
00:12:22]} {[%emt 00:00:18]} O-O {[%clk 00:10:13]} {[%emt 00:00:05]} 13. Bd2
{[%clk 00:10:31]} {[%emt 00:01:56]} Bf6 {[%clk 00:09:57]} {[%emt 00:00:21]} 14.
Qc1 {[%clk 00:10:33]} {[%emt 00:00:02]} Re8 {[%clk 00:09:15]} {[%emt 00:00:48]}
15. c4 {[%clk 00:09:18]} {[%emt 00:01:19]} Ndb4 {[%clk 00:08:43]} {[%emt
00:00:37]} 16. Bc3 {[%clk 00:08:26]} {[%emt 00:00:57]} Bg4 {[%clk 00:08:14]}
{[%emt 00:00:34]} 17. Bd1 {[%clk 00:07:32]} {[%emt 00:00:58]} Nd3 {[%clk
00:07:26]} {[%emt 00:00:55]} 18. Qd2 {[%clk 00:07:06]} {[%emt 00:00:30]} Bxf3
{[%clk 00:06:35]} {[%emt 00:00:56]} 19. Bxf3 {[%clk 00:06:54]} {[%emt
00:00:17]} Bg5 {[%clk 00:06:33]} {[%emt 00:00:08]} 20. Qc2 {[%clk 00:06:34]}
{[%emt 00:00:25]} Ncb4 {[%clk 00:05:56]} {[%emt 00:00:43]} 21. Bxb4 {[%clk
00:05:49]} {[%emt 00:00:50]} Nxb4 {[%clk 00:05:59]} {[%emt 00:00:02]} 22. Qb3
{[%clk 00:05:46]} {[%emt 00:00:08]} Nc6 {[%clk 00:03:56]} {[%emt 00:02:08]} 23.
Qxb7 {[%clk 00:05:30]} {[%emt 00:00:20]} Nd4 {[%clk 00:03:45]} {[%emt
00:00:16]} 24. Qxa8 {[%clk 00:05:10]} {[%emt 00:00:25]} Qxa8 {[%clk 00:03:46]}
{[%emt 00:00:04]} 25. Bxa8 {[%clk 00:05:13]} {[%emt 00:00:02]} Nc2 {[%clk
00:03:49]} {[%emt 00:00:02]} 26. Bc6 {[%clk 00:04:44]} {[%emt 00:00:34]} Rb8
{[%clk 00:03:26]} {[%emt 00:00:28]} 27. Nc3 {[%clk 00:04:31]} {[%emt 00:00:18]}
Nxa1 {[%clk 00:03:27]} {[%emt 00:00:04]} 28. Rxa1 {[%clk 00:04:34]} {[%emt
00:00:02]} Rxb2 {[%clk 00:03:25]} {[%emt 00:00:06]} 29. Rb1 {[%clk 00:04:33]}
{[%emt 00:00:06]} Rd2 {[%clk 00:03:08]} {[%emt 00:00:23]} 30. Rb8+ {[%clk
00:04:31]} {[%emt 00:00:07]} Bd8 {[%clk 00:03:12]} {[%emt 00:00:02]} 31. Kf1
{[%clk 00:04:25]} {[%emt 00:00:10]} g6 {[%clk 00:03:09]} {[%emt 00:00:09]} 32.
Nd5 {[%clk 00:04:17]} {[%emt 00:00:12]} 1-0

[Event "SS Manhem Chess Week 2022: Goteborg Open"]
[Site "Schackcentrum, Vegagatan 20, Gothenburg, Sweden"]
[Date "2022.08.12"]
[Round "3.5"]
[White "Ottgard, Andreas"]
[Black "Eriksson, Joel"]
[Result "0-1"]
[TimeControl "15 minutes + 5 seconds per move from move one (Round 1 - 4) / 90 minutes + 30 seconds per move from move one (Round 5 - 8)"]
[WhiteFideId "1730592"]
[BlackFideId "1729233"]
[WhiteElo "1883"]
[BlackElo "1949"]

1. c4 {[%clk 00:15:07]} b6 {[%clk 00:15:08]} {[%emt 00:00:02]} 2. Nc3 {[%clk
00:15:10]} {[%emt 00:00:03]} Bb7 {[%clk 00:15:12]} {[%emt 00:00:02]} 3. e4
{[%clk 00:15:06]} {[%emt 00:00:07]} e6 {[%clk 00:15:11]} {[%emt 00:00:07]} 4.
g3 {[%clk 00:14:37]} {[%emt 00:00:33]} f5 {[%clk 00:15:05]} {[%emt 00:00:11]} 5.
Bg2 {[%clk 00:14:39]} {[%emt 00:00:03]} Nf6 {[%clk 00:14:56]} {[%emt 00:00:14]}
6. d3 {[%clk 00:14:07]} {[%emt 00:00:37]} Bb4 {[%clk 00:13:58]} {[%emt
00:01:03]} 7. Nge2 {[%clk 00:14:03]} {[%emt 00:00:09]} fxe4 {[%clk 00:13:49]}
{[%emt 00:00:14]} 8. O-O {[%clk 00:13:53]} {[%emt 00:00:14]} O-O {[%clk
00:13:43]} {[%emt 00:00:12]} 9. dxe4 {[%clk 00:13:24]} {[%emt 00:00:34]} Nc6
{[%clk 00:12:59]} {[%emt 00:00:48]} 10. h3 {[%clk 00:13:02]} {[%emt 00:00:27]}
Rb8 {[%clk 00:11:40]} {[%emt 00:01:25]} 11. Be3 {[%clk 00:12:08]} {[%emt
00:00:58]} Qe7 {[%clk 00:10:18]} {[%emt 00:01:27]} 12. a3 {[%clk 00:11:45]}
{[%emt 00:00:28]} Bc5 {[%clk 00:10:14]} {[%emt 00:00:08]} 13. Qd2 {[%clk
00:11:13]} {[%emt 00:00:37]} Bxe3 {[%clk 00:09:58]} {[%emt 00:00:22]} 14. Qxe3
{[%clk 00:11:14]} {[%emt 00:00:04]} Na5 {[%clk 00:09:52]} {[%emt 00:00:11]} 15.
Qd3 {[%clk 00:10:14]} {[%emt 00:01:04]} Nb3 {[%clk 00:09:34]} {[%emt 00:00:23]}
16. Rad1 {[%clk 00:10:04]} {[%emt 00:00:15]} Nc5 {[%clk 00:09:37]} {[%emt
00:00:02]} 17. Qc2 {[%clk 00:09:35]} {[%emt 00:00:35]} a5 {[%emt 00:00:49]} 18.
Nd4 {[%clk 00:09:05]} d6 {[%clk 00:08:31]} {[%emt 00:01:02]} 19. Rfe1 {[%clk
00:08:39]} {[%emt 00:00:30]} e5 {[%clk 00:08:18]} {[%emt 00:00:18]} 20. Nf5
{[%clk 00:08:30]} {[%emt 00:00:14]} Qf7 {[%clk 00:08:14]} {[%emt 00:00:09]} 21.
Ne3 {[%clk 00:07:27]} {[%emt 00:01:09]} Ne6 {[%clk 00:07:59]} {[%emt 00:00:20]}
22. Ned5 {[%clk 00:07:04]} {[%emt 00:00:28]} Nd4 {[%clk 00:07:45]} {[%emt
00:00:19]} 23. Qd3 {[%clk 00:06:33]} {[%emt 00:00:36]} Nd7 {[%clk 00:07:31]}
{[%emt 00:00:19]} 24. Nxc7 {[%clk 00:05:33]} {[%emt 00:01:05]} Qxf2+ {[%clk
00:07:15]} {[%emt 00:00:21]} 25. Kh1 {[%clk 00:05:24]} {[%emt 00:00:15]} Nc5
{[%clk 00:07:10]} {[%emt 00:00:09]} 26. Qe3 {[%clk 00:05:10]} {[%emt 00:00:19]}
Qxe3 {[%clk 00:06:34]} {[%emt 00:00:41]} 27. Rxe3 {[%clk 00:05:13]} {[%emt
00:00:01]} Rf2 {[%clk 00:06:36]} {[%emt 00:00:04]} 28. b4 {[%clk 00:04:54]}
{[%emt 00:00:24]} axb4 {[%clk 00:06:23]} {[%emt 00:00:18]} 29. axb4 {[%clk
00:04:57]} {[%emt 00:00:02]} Ncb3 {[%clk 00:05:54]} {[%emt 00:00:34]} 30. N3b5
{[%clk 00:04:37]} {[%emt 00:00:25]} Rc8 {[%clk 00:05:08]} {[%emt 00:00:51]} 31.
Rxb3 {[%clk 00:02:20]} {[%emt 00:02:22]} Nxb3 {[%clk 00:05:01]} {[%emt
00:00:12]} 32. Rxd6 {[%clk 00:02:20]} {[%emt 00:00:03]} Rcf8 {[%clk 00:04:01]}
{[%emt 00:01:06]} 33. Rxb6 {[%clk 00:01:49]} {[%emt 00:00:37]} Rxg2 {[%clk
00:03:14]} {[%emt 00:00:51]} 34. Kxg2 {[%clk 00:01:44]} {[%emt 00:00:10]} Bxe4+
{[%clk 00:03:17]} {[%emt 00:00:02]} 35. Kg1 {[%clk 00:01:24]} {[%emt 00:00:26]}
Nd2 {[%clk 00:03:16]} {[%emt 00:00:06]} 36. Nd6 {[%clk 00:01:05]} {[%emt
00:00:23]} Rf1+ {[%clk 00:03:08]} {[%emt 00:00:13]} 37. Kh2 {[%clk 00:01:01]}
{[%emt 00:00:09]} Rh1# {[%clk 00:02:51]} {[%emt 00:00:16]} 0-1

[Event "SS Manhem Chess Week 2022: Goteborg Open"]
[Site "Schackcentrum, Vegagatan 20, Gothenburg, Sweden"]
[Date "2022.08.12"]
[Round "3.6"]
[White "Lindholm, Marcus"]
[Black "Karlsson, Stefan"]
[Result "1-0"]
[TimeControl "15 minutes + 5 seconds per move from move one (Round 1 - 4) / 90 minutes + 30 seconds per move from move one (Round 5 - 8)"]
[WhiteFideId "1743473"]
[BlackFideId "1771183"]
[WhiteElo "1666"]
[BlackElo "1560"]

1. d4 {[%clk 00:15:05]} {[%emt 00:00:07]} Nf6 {[%clk 00:15:07]} {[%emt
00:00:01]} 2. a3 {[%clk 00:15:03]} {[%emt 00:00:07]} a6 {[%clk 00:15:06]}
{[%emt 00:00:06]} 3. Bg5 {[%clk 00:15:04]} {[%emt 00:00:03]} g6 {[%clk
00:15:04]} {[%emt 00:00:08]} 4. Bxf6 {[%clk 00:15:05]} {[%emt 00:00:04]} exf6
{[%clk 00:15:07]} {[%emt 00:00:02]} 5. c4 {[%clk 00:14:57]} {[%emt 00:00:13]}
d6 {[%clk 00:15:05]} {[%emt 00:00:07]} 6. Nf3 {[%clk 00:14:39]} {[%emt
00:00:23]} Bg7 {[%clk 00:14:48]} {[%emt 00:00:22]} 7. Nc3 {[%clk 00:14:26]}
{[%emt 00:00:19]} f5 {[%clk 00:14:51]} {[%emt 00:00:02]} 8. e3 {[%clk
00:14:29]} {[%emt 00:00:02]} O-O {[%clk 00:13:59]} {[%emt 00:00:56]} 9. b4
{[%clk 00:13:31]} {[%emt 00:01:04]} c6 {[%clk 00:13:46]} {[%emt 00:00:18]} 10.
Rc1 {[%clk 00:13:07]} {[%emt 00:00:29]} Re8 {[%clk 00:12:53]} {[%emt 00:00:58]}
11. c5 {[%clk 00:12:25]} {[%emt 00:00:48]} f4 {[%clk 00:12:10]} {[%emt
00:00:47]} 12. e4 {[%clk 00:10:32]} {[%emt 00:01:57]} dxc5 {[%clk 00:12:14]}
{[%emt 00:00:02]} 13. bxc5 {[%clk 00:10:26]} {[%emt 00:00:11]} Qa5 {[%clk
00:12:09]} {[%emt 00:00:10]} 14. Qd2 {[%clk 00:08:19]} {[%emt 00:02:11]} Bg4
{[%clk 00:10:39]} {[%emt 00:01:36]} 15. Bc4 {[%clk 00:06:30]} {[%emt 00:01:53]}
Nd7 {[%clk 00:08:49]} {[%emt 00:01:55]} 16. Qxf4 {[%clk 00:06:24]} {[%emt
00:00:12]} Nf6 {[%clk 00:08:49]} {[%emt 00:00:04]} 17. e5 {[%clk 00:06:14]}
{[%emt 00:00:14]} Bxf3 {[%clk 00:07:34]} {[%emt 00:01:21]} 18. Qxf3 {[%clk
00:05:03]} {[%emt 00:01:17]} Re7 {[%clk 00:07:31]} {[%emt 00:00:08]} 19. O-O
{[%clk 00:04:53]} {[%emt 00:00:14]} Ne8 {[%clk 00:07:22]} {[%emt 00:00:15]} 20.
Ne4 {[%clk 00:04:41]} {[%emt 00:00:17]} Rd8 {[%clk 00:06:21]} {[%emt 00:01:06]}
21. Nd6 {[%clk 00:04:10]} {[%emt 00:00:35]} Nxd6 {[%clk 00:05:19]} {[%emt
00:01:07]} 22. cxd6 {[%clk 00:04:13]} {[%emt 00:00:02]} Red7 {[%clk 00:05:14]}
{[%emt 00:00:10]} 23. e6 {[%clk 00:04:16]} {[%emt 00:00:01]} Rxd6 {[%clk
00:04:57]} {[%emt 00:00:22]} 24. Qxf7+ {[%clk 00:04:17]} {[%emt 00:00:04]} Kh8
{[%clk 00:04:59]} {[%emt 00:00:03]} 25. e7 {[%clk 00:04:21]} {[%emt 00:00:01]}
Qf5 {[%clk 00:04:40]} {[%emt 00:00:24]} 26. e8=Q+ {[%clk 00:04:18]} {[%emt
00:00:08]} Rxe8 {[%clk 00:04:39]} {[%emt 00:00:07]} 27. Qxe8+ {[%clk 00:04:21]}
{[%emt 00:00:02]} Qf8 {[%clk 00:04:33]} {[%emt 00:00:11]} 28. Qxf8+ {[%clk
00:04:23]} {[%emt 00:00:03]} Bxf8 {[%clk 00:04:38]} 29. Rfd1 {[%clk 00:04:19]}
{[%emt 00:00:09]} Rf6 {[%clk 00:04:41]} {[%emt 00:00:02]} 30. d5 {[%clk
00:04:17]} {[%emt 00:00:06]} Bxa3 {[%clk 00:04:40]} {[%emt 00:00:06]} 31. d6
{[%clk 00:04:08]} {[%emt 00:00:14]} Bxd6 {[%clk 00:04:42]} {[%emt 00:00:04]} 32.
Rb1 {[%clk 00:04:01]} {[%emt 00:00:11]} b5 {[%clk 00:04:43]} {[%emt 00:00:04]}
33. Be2 {[%clk 00:03:59]} {[%emt 00:00:07]} Bc5 {[%clk 00:04:42]} {[%emt
00:00:06]} 34. Bf3 {[%clk 00:03:59]} {[%emt 00:00:04]} Ba3 {[%clk 00:04:19]}
{[%emt 00:00:30]} 35. Rd8+ {[%clk 00:03:56]} {[%emt 00:00:08]} Kg7 {[%clk
00:04:23]} 36. Ra1 {[%clk 00:03:49]} {[%emt 00:00:12]} b4 {[%clk 00:04:25]}
{[%emt 00:00:02]} 37. Rc8 {[%clk 00:03:41]} {[%emt 00:00:12]} c5 {[%clk
00:03:57]} {[%emt 00:00:34]} 38. Rxc5 {[%clk 00:03:35]} {[%emt 00:00:12]} Bb2
{[%clk 00:03:59]} {[%emt 00:00:03]} 39. Ra2 {[%clk 00:03:09]} {[%emt 00:00:29]}
Bc3 {[%clk 00:04:01]} {[%emt 00:00:04]} 40. Rc6 {[%clk 00:03:04]} {[%emt
00:00:11]} Rf5 {[%clk 00:03:24]} {[%emt 00:00:42]} 41. Raxa6 {[%clk 00:02:52]}
{[%emt 00:00:17]} b3 {[%clk 00:02:53]} {[%emt 00:00:35]} 42. Rxc3 {[%clk
00:02:42]} {[%emt 00:00:15]} b2 {[%clk 00:02:57]} {[%emt 00:00:01]} 43. Rb3
{[%clk 00:02:42]} {[%emt 00:00:05]} Rc5 {[%clk 00:03:02]} 44. g4 {[%clk
00:02:22]} {[%emt 00:00:25]} Rc1+ {[%clk 00:03:04]} {[%emt 00:00:02]} 45. Kg2
{[%clk 00:02:26]} {[%emt 00:00:02]} b1=Q {[%clk 00:03:07]} {[%emt 00:00:03]} 46.
Rxb1 {[%clk 00:02:29]} {[%emt 00:00:02]} Rxb1 {[%clk 00:03:11]} 47. g5 {[%clk
00:02:27]} {[%emt 00:00:07]} Rb5 {[%clk 00:03:08]} {[%emt 00:00:07]} 48. Ra7+
{[%clk 00:02:29]} {[%emt 00:00:03]} Kh8 {[%clk 00:03:12]} {[%emt 00:00:02]} 49.
h4 {[%clk 00:02:33]} {[%emt 00:00:01]} h5 {[%clk 00:03:07]} {[%emt 00:00:10]}
50. Be4 {[%clk 00:02:26]} {[%emt 00:00:12]} Rb6 {[%clk 00:03:04]} {[%emt
00:00:09]} 51. Rc7 {[%clk 00:02:24]} {[%emt 00:00:07]} Kg8 {[%clk 00:02:54]}
{[%emt 00:00:15]} 52. Rc6 {[%clk 00:02:26]} {[%emt 00:00:03]} Rb4 {[%clk
00:02:56]} {[%emt 00:00:03]} 53. f3 {[%clk 00:02:21]} {[%emt 00:00:10]} Kf7
{[%clk 00:02:45]} {[%emt 00:00:16]} 54. Rxg6 {[%clk 00:02:19]} {[%emt
00:00:06]} Rxe4 {[%clk 00:02:46]} {[%emt 00:00:04]} 55. fxe4 {[%clk 00:02:21]}
{[%emt 00:00:04]} Kxg6 {[%clk 00:02:50]} 56. Kf3 {[%clk 00:02:22]} {[%emt
00:00:03]} Kf7 {[%clk 00:02:51]} {[%emt 00:00:04]} 57. Kf4 {[%clk 00:02:25]}
{[%emt 00:00:02]} Ke6 {[%clk 00:02:56]} 58. e5 {[%clk 00:02:26]} {[%emt
00:00:04]} Ke7 {[%clk 00:02:59]} {[%emt 00:00:01]} 59. Kf5 {[%clk 00:02:29]}
{[%emt 00:00:03]} Kf7 {[%clk 00:03:03]} 60. e6+ {[%clk 00:02:33]} {[%emt
00:00:02]} Ke7 {[%clk 00:03:07]} 61. g6 {[%clk 00:02:34]} {[%emt 00:00:04]} Ke8
{[%clk 00:03:09]} {[%emt 00:00:04]} 62. Kf6 {[%clk 00:02:34]} {[%emt 00:00:05]}
Kf8 {[%clk 00:03:13]} 63. e7+ {[%clk 00:02:37]} {[%emt 00:00:04]} Ke8 {[%clk
00:03:14]} {[%emt 00:00:04]} 64. g7 {[%clk 00:02:41]} {[%emt 00:00:01]} Kd7
{[%clk 00:03:18]} 65. g8=Q {[%clk 00:02:36]} {[%emt 00:00:05]} 1-0

[Event "SS Manhem Chess Week 2022: Goteborg Open"]
[Site "Schackcentrum, Vegagatan 20, Gothenburg, Sweden"]
[Date "2022.08.12"]
[Round "3.8"]
[White "Johansson, William"]
[Black "Sundin, Sven-Ingvar"]
[Result "1-0"]
[TimeControl "15 minutes + 5 seconds per move from move one (Round 1 - 4) / 90 minutes + 30 seconds per move from move one (Round 5 - 8)"]
[WhiteFideId "1744070"]
[BlackFideId "1724517"]
[WhiteElo "2015"]
[BlackElo "1637"]

1. d4 {[%clk 00:15:08]} Nf6 {[%clk 00:15:08]} {[%emt 00:00:02]} 2. Nf3 {[%clk
00:15:11]} {[%emt 00:00:05]} d5 {[%clk 00:15:09]} {[%emt 00:00:01]} 3. c3
{[%clk 00:15:15]} {[%emt 00:00:02]} e6 {[%clk 00:15:07]} {[%emt 00:00:07]} 4.
Bf4 {[%clk 00:15:14]} {[%emt 00:00:06]} Bd6 {[%clk 00:15:08]} {[%emt 00:00:03]}
5. e3 {[%clk 00:15:17]} {[%emt 00:00:03]} b6 {[%clk 00:15:01]} {[%emt
00:00:12]} 6. Bb5+ {[%clk 00:14:41]} {[%emt 00:00:40]} c6 {[%clk 00:14:55]}
{[%emt 00:00:11]} 7. Bd3 {[%clk 00:14:44]} {[%emt 00:00:03]} Bb7 {[%clk
00:14:57]} {[%emt 00:00:02]} 8. Nbd2 {[%clk 00:14:37]} {[%emt 00:00:13]} O-O
{[%clk 00:14:57]} {[%emt 00:00:03]} 9. O-O {[%clk 00:14:34]} {[%emt 00:00:09]}
c5 {[%clk 00:15:01]} {[%emt 00:00:02]} 10. Ne5 {[%clk 00:14:29]} {[%emt
00:00:10]} Nc6 {[%clk 00:15:03]} {[%emt 00:00:03]} 11. Bg3 {[%clk 00:14:21]}
{[%emt 00:00:12]} Ne7 {[%clk 00:14:54]} {[%emt 00:00:14]} 12. f4 {[%clk
00:14:15]} {[%emt 00:00:13]} Nf5 {[%clk 00:14:55]} {[%emt 00:00:02]} 13. Bf2
{[%clk 00:14:14]} {[%emt 00:00:06]} Be7 {[%clk 00:14:53]} {[%emt 00:00:07]} 14.
g4 {[%clk 00:14:08]} {[%emt 00:00:11]} Nd6 {[%clk 00:14:56]} {[%emt 00:00:03]}
15. Bh4 {[%clk 00:12:45]} {[%emt 00:01:28]} Nfe4 {[%clk 00:14:50]} {[%emt
00:00:11]} 16. Bxe7 {[%clk 00:12:46]} {[%emt 00:00:03]} Qxe7 {[%clk 00:14:52]}
{[%emt 00:00:03]} 17. Bxe4 {[%clk 00:10:28]} {[%emt 00:02:24]} Nxe4 {[%clk
00:14:54]} {[%emt 00:00:03]} 18. Rf3 {[%clk 00:09:41]} {[%emt 00:00:52]} f6
{[%clk 00:14:39]} {[%emt 00:00:20]} 19. Nd3 {[%clk 00:09:31]} {[%emt 00:00:14]}
c4 {[%clk 00:14:39]} {[%emt 00:00:05]} 20. Nf2 {[%clk 00:09:27]} {[%emt
00:00:09]} b5 {[%clk 00:14:15]} {[%emt 00:00:29]} 21. Nfxe4 {[%clk 00:08:43]}
{[%emt 00:00:50]} dxe4 {[%clk 00:14:17]} {[%emt 00:00:03]} 22. Rg3 {[%clk
00:08:46]} {[%emt 00:00:01]} f5 {[%clk 00:14:06]} {[%emt 00:00:17]} 23. g5
{[%clk 00:08:50]} {[%emt 00:00:02]} g6 {[%clk 00:14:04]} {[%emt 00:00:06]} 24.
h4 {[%clk 00:08:48]} {[%emt 00:00:06]} Bc6 {[%clk 00:13:31]} {[%emt 00:00:39]}
25. b3 {[%clk 00:08:26]} {[%emt 00:00:27]} cxb3 {[%clk 00:13:13]} {[%emt
00:00:23]} 26. axb3 {[%clk 00:08:23]} {[%emt 00:00:07]} a5 {[%clk 00:12:43]}
{[%emt 00:00:35]} 27. c4 {[%clk 00:07:43]} {[%emt 00:00:45]} bxc4 {[%clk
00:11:56]} {[%emt 00:00:52]} 28. Nxc4 {[%clk 00:07:39]} {[%emt 00:00:09]} Bd5
{[%clk 00:11:58]} {[%emt 00:00:02]} 29. Ne5 {[%clk 00:06:18]} {[%emt 00:01:26]}
Bxb3 {[%clk 00:11:53]} {[%emt 00:00:09]} 30. Qxb3 {[%clk 00:06:19]} {[%emt
00:00:05]} Rfb8 {[%clk 00:11:48]} {[%emt 00:00:09]} 31. Qa2 {[%clk 00:05:39]}
{[%emt 00:00:46]} a4 {[%clk 00:11:39]} {[%emt 00:00:15]} 32. Nc6 {[%clk
00:05:39]} {[%emt 00:00:04]} 1-0